[Event "Swiss Championship U10 2022"]
[Site "Biel"]
[Date "2022.07.18"]
[Round "1.1"]
[White "Bachmann, Elias"]
[Black "Saminskij, Jan"]
[Result "0-1"]
[ECO "E61"]
[WhiteElo "1319"]
[BlackElo "1487"]
[Annotator "NA COMBH"]
[PlyCount "50"]
[EventDate "2022.07.18"]
[EventType "swiss"]
[EventCountry "SUI"]
[SourceTitle "playchess.com"]
[Source "ChessBase"]
[SourceQuality "1"]
[TimeControl "5400+30"]

1. d4 {[%emt 0:00:16]} Nf6 {[%emt 0:01:14]} 2. c4 {[%emt 0:02:26]} g6 {[%emt 0:02:36]} 3. Nc3 {[%emt 0:00:00]} Bg7 {[%emt 0:01:02]} 4. e3 {[%emt 0:02:36]} O-O {[%emt 0:06:06]} 5. Nf3 {[%emt 0:04:11]} d6 {[%emt 0:01:50]} 6. Be2 {[%emt 0:01:06]} Nbd7 {[%emt 0:05:34]} 7. O-O {[%emt 0:09:53]} e5 {[%emt 0:06:15]} 8. Qc2 {[%emt 0:05:03]} Re8 {[%emt 0:09:05]} 9. Bd3 {[%emt 0:04:08]} c6 {[%emt 0:07:48]} 10. Nd2 {[%emt 0:02:11]} a6 {[%emt 0:08:42]} 11. d5 {[%emt 0:04:24]} cxd5 {[%emt 0:00:00]} 12. cxd5 {[%emt 0:09:00]} b5 {[%emt 0:00:00]} 13. b4 {[%emt 0:04:06]} e4 {[%emt 0:01:41]} 14. Bxe4 {[%emt 0:00:00]} Nxe4 {[%emt 0:00:27]} 15. Ndxe4 {[%emt 0:00:18]} Rxe4 {[%emt 0:00:18]} 16. Qxe4 {[%emt 0:00:00]} Bxc3 {[%emt 0:00:05]} 17. Rb1 {[%emt 0:00:00]} Nf6 {[%emt 0:03:00]} 18. Qf3 {[%emt 0:01:08]} Bf5 {[%emt 0:00:46]} 19. Rb3 {[%emt 0:07:39]} Rc8 {[%emt 0:03:00]} 20. Rd1 {[%emt 0:06:28]} Bg4 {[%emt 0:01:21]} 21. Qg3 {[%emt 0:00:00]} Bxd1 {[%emt 0:00:20]} 22. Ra3 {[%emt 0:00:00]} Bxb4 {[%emt 0:00:21]} 23. Rxa6 {[%emt 0:00:00]} Rxc1 {[%emt 0:00:05]} 24. h3 {[%emt 0:00:00]} Ne4 {[%emt 0:01:30]} 25. Qf4 {[%emt 0:00:52]} g5 {[%emt 0:00:48]} 0-1

[Event "Swiss Championship U10 2022"]
[Site "Biel"]
[Date "2022.07.18"]
[Round "1.2"]
[White "Chockalingam, Vishak"]
[Black "Rams, Vedha"]
[Result "1-0"]
[ECO "C54"]
[WhiteElo "1285"]
[BlackElo "1312"]
[Annotator "NA COMBH"]
[PlyCount "115"]
[EventDate "2022.07.18"]
[EventType "swiss"]
[EventCountry "SUI"]
[SourceTitle "playchess.com"]
[Source "ChessBase"]
[SourceQuality "1"]
[TimeControl "5400+30"]

1. e4 {[%emt 0:00:06]} e5 {[%emt 0:00:09]} 2. Bc4 {[%emt 0:00:25]} Nf6 {[%emt 0:00:26]} 3. d3 {[%emt 0:00:26]} Nc6 {[%emt 0:00:42]} 4. Nf3 {[%emt 0:00:55]} Bc5 {[%emt 0:00:56]} 5. c3 {[%emt 0:00:44]} d5 {[%emt 0:02:03]} 6. exd5 {[%emt 0:00:25]} Nxd5 {[%emt 0:03:27]} 7. Qe2 {[%emt 0:01:56]} Bg4 {[%emt 0:00:38]} 8. h3 {[%emt 0:01:42]} Bxf3 {[%emt 0:00:06]} 9. Qxf3 {[%emt 0:00:33]} Nce7 {[%emt 0:03:15]} 10. O-O {[%emt 0:02:57]} h6 {[%emt 0:01:48]} 11. a4 {[%emt 0:01:32]} Nf6 {[%emt 0:02:59]} 12. b4 {[%emt 0:01:05]} Bd6 {[%emt 0:08:28]} 13. Nd2 {[%emt 0:01:04]} Ng6 {[%emt 0:03:13]} 14. Qxb7 {[%emt 0:00:39]} O-O {[%emt 0:03:35]} 15. Ne4 {[%emt 0:01:30]} Qe7 {[%emt 0:03:26]} 16. Nxf6+ {[%emt 0:00:16]} Qxf6 {[%emt 0:00:50]} 17. Qe4 {[%emt 0:01:09]} Nf4 {[%emt 0:05:55]} 18. Re1 {[%emt 0:01:00]} Qg5 {[%emt 0:06:57]} 19. Bxf4 {[%emt 0:00:33]} Qxf4 {[%emt 0:00:51]} 20. Qxf4 {[%emt 0:00:12]} exf4 {[%emt 0:00:45]} 21. Re4 {[%emt 0:00:38]} Rfe8 {[%emt 0:00:54]} 22. Rae1 {[%emt 0:00:47]} Kf8 {[%emt 0:00:50]} 23. Bb5 {[%emt 0:00:55]} Rxe4 {[%emt 0:00:10]} 24. Rxe4 {[%emt 0:00:16]} a6 {[%emt 0:00:16]} 25. Bc6 {[%emt 0:00:23]} Rd8 {[%emt 0:01:24]} 26. Bb7 {[%emt 0:01:42]} f5 {[%emt 0:02:07]} 27. Re2 {[%emt 0:00:51]} c5 {[%emt 0:00:39]} 28. bxc5 {[%emt 0:01:10]} Bxc5 {[%emt 0:00:11]} 29. Bxa6 {[%emt 0:00:20]} Bb6 {[%emt 0:00:48]} 30. Re5 {[%emt 0:03:15]} Bc7 {[%emt 0:00:49]} 31. Rxf5+ {[%emt 0:00:22]} Ke7 {[%emt 0:01:57]} 32. Bc4 {[%emt 0:00:28]} Rf8 {[%emt 0:00:41]} 33. Rxf8 {[%emt 0:00:07]} Kxf8 {[%emt 0:00:20]} 34. Kf1 {[%emt 0:00:21]} Ba5 {[%emt 0:00:37]} 35. Ke2 {[%emt 0:00:13]} Bxc3 {[%emt 0:00:12]} 36. Kf3 {[%emt 0:00:17]} g5 {[%emt 0:00:24]} 37. Ke4 {[%emt 0:01:34]} Be1 {[%emt 0:00:10]} 38. f3 {[%emt 0:00:42]} Kg7 {[%emt 0:03:41]} 39. d4 {[%emt 0:00:29]} Kg6 {[%emt 0:04:01]} 40. Kd5 {[%emt 0:00:27]} Bb4 {[%emt 0:00:27]} 41. Ke6 {[%emt 0:00:27]} Kh5 {[%emt 0:01:04]} 42. d5 {[%emt 0:00:10]} Kh4 {[%emt 0:00:10]} 43. d6 {[%emt 0:00:10]} Bxd6 {[%emt 0:00:05]} 44. Kxd6 {[%emt 0:00:29]} Kg3 {[%emt 0:00:23]} 45. Bf1 {[%emt 0:00:11]} Kf2 {[%emt 0:00:00]} 46. a5 {[%emt 0:00:08]} Kxf1 {[%emt 0:00:04]} 47. a6 {[%emt 0:00:10]} Kxg2 {[%emt 0:00:06]} 48. a7 {[%emt 0:00:10]} Kxf3 {[%emt 0:00:07]} 49. a8=Q+ {[%emt 0:00:17]} Kg3 {[%emt 0:00:12]} 50. Qh1 {[%emt 0:00:32]} f3 {[%emt 0:00:22]} 51. Qf1 {[%emt 0:00:19]} f2 {[%emt 0:00:10]} 52. Ke5 {[%emt 0:00:19]} h5 {[%emt 0:00:28]} 53. Ke4 {[%emt 0:00:13]} g4 {[%emt 0:00:20]} 54. hxg4 {[%emt 0:00:24]} hxg4 {[%emt 0:00:09]} 55. Ke3 {[%emt 0:00:38]} Kh2 {[%emt 0:00:43]} 56. Kxf2 {[%emt 0:00:16]} g3+ {[%emt 0:00:06]} 57. Kf3 {[%emt 0:00:24]} g2 {[%emt 0:00:04]} 58. Qxg2# {[%emt 0:00:33]} 1-0

[Event "Swiss Championship U10 2022"]
[Site "Biel"]
[Date "2022.07.18"]
[Round "1.3"]
[White "Wilhelm, Marco"]
[Black "Domschke, Mischa"]
[Result "0-1"]
[ECO "B23"]
[WhiteElo "1332"]
[BlackElo "1565"]
[Annotator "NA COMBH"]
[PlyCount "148"]
[EventDate "2022.07.18"]
[EventType "swiss"]
[EventCountry "SUI"]
[SourceTitle "playchess.com"]
[Source "ChessBase"]
[SourceQuality "1"]
[TimeControl "5400+30"]

1. e4 {[%emt 0:00:01]} c5 {[%emt 0:00:10]} 2. Nc3 {[%emt 0:00:07]} d6 {[%emt 0:00:07]} 3. d3 {[%emt 0:00:51]} Nf6 {[%emt 0:00:14]} 4. g3 {[%emt 0:00:30]} e6 {[%emt 0:00:17]} 5. Bg2 {[%emt 0:00:50]} Be7 {[%emt 0:00:13]} 6. Nge2 {[%emt 0:01:11]} O-O {[%emt 0:00:12]} 7. O-O {[%emt 0:00:11]} Nbd7 {[%emt 0:00:09]} 8. Be3 {[%emt 0:01:01]} Rb8 {[%emt 0:00:17]} 9. Qd2 {[%emt 0:03:07]} b5 {[%emt 0:01:08]} 10. Nf4 {[%emt 0:01:23]} b4 {[%emt 0:00:39]} 11. Nce2 {[%emt 0:01:00]} Bb7 {[%emt 0:00:37]} 12. Nc1 {[%emt 0:01:18]} Nb6 {[%emt 0:00:20]} 13. a3 {[%emt 0:01:59]} a5 {[%emt 0:00:34]} 14. axb4 {[%emt 0:02:46]} axb4 {[%emt 0:00:08]} 15. Ra7 {[%emt 0:03:55]} d5 {[%emt 0:02:03]} 16. c4 {[%emt 0:04:24]} d4 {[%emt 0:03:23]} 17. e5 {[%emt 0:01:53]} dxe3 {[%emt 0:00:19]} 18. Qxe3 {[%emt 0:00:30]} Bxg2 {[%emt 0:00:26]} 19. exf6 {[%emt 0:01:03]} Bxf6 {[%emt 0:00:51]} 20. Kxg2 {[%emt 0:00:45]} Bd4 {[%emt 0:00:56]} 21. Qd2 {[%emt 0:02:15]} Qf6 {[%emt 0:01:10]} 22. Nb3 {[%emt 0:01:15]} Ra8 {[%emt 0:01:26]} 23. Rxa8 {[%emt 0:00:36]} Rxa8 {[%emt 0:00:34]} 24. Nxd4 {[%emt 0:00:17]} Qxd4 {[%emt 0:00:13]} 25. b3 {[%emt 0:01:46]} Ra3 {[%emt 0:01:08]} 26. Qc2 {[%emt 0:01:00]} Nd7 {[%emt 0:00:41]} 27. Ne2 {[%emt 0:01:02]} Qd6 {[%emt 0:00:24]} 28. Rd1 {[%emt 0:01:03]} e5 {[%emt 0:00:32]} 29. Rd2 {[%emt 0:01:11]} Nf6 {[%emt 0:00:45]} 30. h3 {[%emt 0:00:28]} Ra8 {[%emt 0:00:34]} 31. Rd1 {[%emt 0:01:43]} h6 32. Rb1 {[%emt 0:02:00]} Rd8 {[%emt 0:00:28]} 33. Rd1 {[%emt 0:01:07]} e4 {[%emt 0:00:58]} 34. Nc1 {[%emt 0:02:01]} Kf8 {[%emt 0:01:28]} 35. Qd2 {[%emt 0:00:00]} Qd4 {[%emt 0:00:30]} 36. Qe3 {[%emt 0:04:01]} Ng8 {[%emt 0:02:08]} 37. Qxd4 {[%emt 0:00:00]} Rxd4 {[%emt 0:00:30]} 38. Kf1 {[%emt 0:00:00]} Ke7 {[%emt 0:00:21]} 39. Ke2 Nf6 40. Ke3 Ke6 {[%emt 0:00:56]} 41. Rd2 {[%emt 0:00:00]} Ke5 {[%emt 0:00:30]} 42. f4+ {[%emt 0:00:00]} exf3 {[%emt 0:00:30]} 43. Kxf3 {[%emt 0:00:00]} g5 {[%emt 0:00:52]} 44. Ra2 {[%emt 0:00:30]} Nd7 {[%emt 0:00:30]} 45. Ra7 {[%emt 0:00:30]} f5 {[%emt 0:00:30]} 46. Ra8 {[%emt 0:00:30]} f4 {[%emt 0:00:49]} 47. Re8+ {[%emt 0:00:32]} Kf6 {[%emt 0:00:30]} 48. Rh8 {[%emt 0:00:30]} Kg6 {[%emt 0:00:30]} 49. Rg8+ {[%emt 0:00:30]} Kf7 {[%emt 0:00:30]} 50. Rh8 {[%emt 0:00:30]} Kg7 {[%emt 0:00:30]} 51. Re8 {[%emt 0:00:30]} Kf6 {[%emt 0:00:30]} 52. Rh8 {[%emt 0:00:30]} Ne5+ {[%emt 0:00:30]} 53. Kg2 {[%emt 0:00:30]} Kg7 {[%emt 0:00:30]} 54. Rc8 {[%emt 0:00:30]} Nxd3 {[%emt 0:00:30]} 55. Nxd3 {[%emt 0:00:30]} Rxd3 {[%emt 0:00:30]} 56. Rxc5 {[%emt 0:00:30]} Rxg3+ {[%emt 0:00:30]} 57. Kh2 {[%emt 0:03:53]} Rxb3 {[%emt 0:00:00]} 58. Rc7+ {[%emt 0:00:58]} Kg6 {[%emt 0:00:00]} 59. Rc6+ {[%emt 0:00:29]} Kh5 {[%emt 0:00:00]} 60. c5 {[%emt 0:03:30]} Rc3 {[%emt 0:00:00]} 61. Rb6 {[%emt 0:00:57]} Rxc5 {[%emt 0:00:00]} 62. Rxb4 {[%emt 0:00:11]} Rc2+ {[%emt 0:00:00]} 63. Kg1 {[%emt 0:00:24]} Kh4 {[%emt 0:00:00]} 64. Rb3 {[%emt 0:00:05]} h5 {[%emt 0:00:00]} 65. Rf3 {[%emt 0:00:16]} g4 {[%emt 0:00:44]} 66. hxg4 {[%emt 0:00:39]} Kxg4 {[%emt 0:00:00]} 67. Rd3 {[%emt 0:00:33]} h4 {[%emt 0:00:00]} 68. Rd4 {[%emt 0:00:19]} Kg3 {[%emt 0:00:15]} 69. Rd3+ {[%emt 0:00:17]} f3 {[%emt 0:00:10]} 70. Rd1 {[%emt 0:00:21]} Rh2 {[%emt 0:00:19]} 71. Rf1 {[%emt 0:00:26]} Rg2+ {[%emt 0:00:11]} 72. Kh1 {[%emt 0:00:36]} Rh2+ {[%emt 0:00:16]} 73. Kg1 {[%emt 0:00:14]} f2+ {[%emt 0:00:08]} 74. Rxf2 {[%emt 0:00:12]} Rxf2 {[%emt 0:01:04]} 0-1

[Event "Swiss Championship U10 2022"]
[Site "Biel"]
[Date "2022.07.18"]
[Round "1.4"]
[White "Pahud, Kylian"]
[Black "Sunilkumar, Prathyush"]
[Result "1-0"]
[ECO "C50"]
[WhiteElo "1373"]
[BlackElo "1336"]
[Annotator "NA COMBH"]
[PlyCount "75"]
[EventDate "2022.07.18"]
[EventType "swiss"]
[EventCountry "SUI"]
[SourceTitle "playchess.com"]
[Source "ChessBase"]
[SourceQuality "1"]
[TimeControl "5400+30"]

1. e4 {[%emt 0:00:38]} e5 {[%emt 0:00:32]} 2. Nf3 {[%emt 0:01:13]} Nc6 {[%emt 0:00:00]} 3. Bc4 {[%emt 0:00:56]} Bc5 {[%emt 0:00:03]} 4. d3 {[%emt 0:00:26]} Nf6 {[%emt 0:00:10]} 5. Bg5 {[%emt 0:00:27]} h6 {[%emt 0:01:01]} 6. Be3 {[%emt 0:00:37]} d6 {[%emt 0:00:06]} 7. Bxc5 {[%emt 0:00:35]} dxc5 {[%emt 0:00:10]} 8. Nbd2 {[%emt 0:00:28]} O-O {[%emt 0:00:17]} 9. O-O {[%emt 0:00:17]} Be6 {[%emt 0:00:09]} 10. Bb3 {[%emt 0:00:21]} b5 {[%emt 0:01:12]} 11. a4 {[%emt 0:00:59]} b4 {[%emt 0:01:23]} 12. Nc4 {[%emt 0:00:41]} Bg4 {[%emt 0:00:00]} 13. Ncd2 {[%emt 0:00:52]} Nd4 {[%emt 0:00:00]} 14. Bc4 {[%emt 0:00:30]} Re8 {[%emt 0:00:45]} 15. c3 {[%emt 0:01:24]} bxc3 {[%emt 0:01:35]} 16. bxc3 {[%emt 0:00:41]} Nc6 {[%emt 0:01:42]} 17. Bb5 {[%emt 0:01:27]} Qd6 {[%emt 0:00:37]} 18. a5 {[%emt 0:00:27]} a6 {[%emt 0:00:12]} 19. Bc4 {[%emt 0:00:18]} Be6 {[%emt 0:01:22]} 20. Qa4 {[%emt 0:01:40]} Red8 {[%emt 0:00:00]} 21. Rfd1 {[%emt 0:00:31]} Ne7 {[%emt 0:00:14]} 22. Bxe6 {[%emt 0:00:46]} fxe6 {[%emt 0:00:22]} 23. Nc4 {[%emt 0:02:43]} Qd7 {[%emt 0:04:02]} 24. Nfxe5 {[%emt 0:00:00]} Qxa4 {[%emt 0:00:08]} 25. Rxa4 {[%emt 0:00:11]} Nxe4 {[%emt 0:00:12]} 26. Rc1 {[%emt 0:00:00]} Nd6 {[%emt 0:01:03]} 27. Re1 {[%emt 0:00:00]} Nf7 {[%emt 0:01:46]} 28. d4 {[%emt 0:00:00]} cxd4 {[%emt 0:00:38]} 29. cxd4 {[%emt 0:00:12]} Rxd4 {[%emt 0:00:17]} 30. Nxf7 {[%emt 0:00:12]} Kxf7 {[%emt 0:00:10]} 31. Ne5+ {[%emt 0:00:06]} Kf6 {[%emt 0:00:27]} 32. Rxd4 {[%emt 0:00:26]} Nf5 {[%emt 0:01:02]} 33. Rd7 {[%emt 0:01:36]} Rc8 {[%emt 0:00:00]} 34. Rf7+ {[%emt 0:00:02]} Kg5 {[%emt 0:00:00]} 35. h3 {[%emt 0:01:04]} g6 {[%emt 0:00:06]} 36. Re4 {[%emt 0:00:40]} Nd6 {[%emt 0:00:25]} 37. Nf3+ {[%emt 0:00:13]} Kh5 {[%emt 0:00:28]} 38. Rh4# {[%emt 0:00:07]} 1-0

[Event "Swiss Championship U10 2022"]
[Site "Biel"]
[Date "2022.07.18"]
[Round "1.5"]
[White "Gregor, Elena"]
[Black "Jordan, Christina"]
[Result "0-1"]
[ECO "C50"]
[WhiteElo "1258"]
[BlackElo "1367"]
[Annotator "NA COMBH"]
[PlyCount "70"]
[EventDate "2022.07.18"]
[EventType "swiss"]
[EventCountry "SUI"]
[SourceTitle "playchess.com"]
[Source "ChessBase"]
[SourceQuality "1"]
[TimeControl "5400+30"]

1. e4 {[%emt 0:00:04]} e5 {[%emt 0:00:04]} 2. Nf3 {[%emt 0:00:10]} Nc6 {[%emt 0:00:03]} 3. d4 {[%emt 0:02:17]} exd4 {[%emt 0:02:42]} 4. Bc4 {[%emt 0:00:13]} Be7 {[%emt 0:00:44]} 5. c3 {[%emt 0:00:32]} dxc3 {[%emt 0:00:19]} 6. Qd5 {[%emt 0:00:12]} Nh6 {[%emt 0:01:56]} 7. Bxh6 {[%emt 0:00:13]} O-O {[%emt 0:00:07]} 8. Bc1 {[%emt 0:00:25]} Nb4 {[%emt 0:00:28]} 9. Bb3 {[%emt 0:01:23]} Nxd5 {[%emt 0:00:06]} 10. Bxd5 {[%emt 0:00:22]} Bb4 {[%emt 0:00:39]} 11. bxc3 {[%emt 0:00:14]} Bc5 {[%emt 0:00:21]} 12. O-O {[%emt 0:01:14]} c6 {[%emt 0:00:16]} 13. Bg5 {[%emt 0:01:00]} Be7 {[%emt 0:00:13]} 14. Bxe7 {[%emt 0:01:29]} Qxe7 {[%emt 0:00:06]} 15. Bc4 {[%emt 0:00:19]} Qxe4 {[%emt 0:00:28]} 16. Nbd2 {[%emt 0:01:00]} Qg6 {[%emt 0:00:47]} 17. Ne5 {[%emt 0:02:13]} Qf6 {[%emt 0:00:51]} 18. Bxf7+ {[%emt 0:07:15]} Kh8 {[%emt 0:02:07]} 19. Ng4 {[%emt 0:01:18]} Qxf7 {[%emt 0:00:50]} 20. Ne5 {[%emt 0:00:59]} Qf6 {[%emt 0:02:08]} 21. Rae1 {[%emt 0:01:23]} d6 {[%emt 0:02:13]} 22. Nd3 {[%emt 0:00:39]} Qxc3 {[%emt 0:01:23]} 23. Re7 {[%emt 0:03:21]} Bf5 {[%emt 0:01:16]} 24. Ne4 {[%emt 0:01:01]} Bxe4 {[%emt 0:00:39]} 25. Rxe4 {[%emt 0:00:45]} Qxd3 {[%emt 0:00:06]} 26. Re3 {[%emt 0:00:20]} Qc2 {[%emt 0:00:16]} 27. Re7 {[%emt 0:00:39]} Qxa2 {[%emt 0:00:06]} 28. Rxb7 {[%emt 0:00:10]} h6 {[%emt 0:00:18]} 29. Rc7 {[%emt 0:00:16]} c5 {[%emt 0:00:08]} 30. Rd7 {[%emt 0:00:15]} Rf6 {[%emt 0:00:07]} 31. Kh1 {[%emt 0:00:21]} Raf8 {[%emt 0:00:04]} 32. f3 {[%emt 0:00:16]} g5 {[%emt 0:00:08]} 33. Kg1 {[%emt 0:00:55]} g4 {[%emt 0:00:07]} 34. Kh1 {[%emt 0:00:45]} gxf3 {[%emt 0:00:38]} 35. g3 {[%emt 0:00:24]} Qg2# {[%emt 0:00:10]} 0-1

[Event "Swiss Championship U10 2022"]
[Site "Biel"]
[Date "2022.07.18"]
[Round "1.6"]
[White "Bhingare, Joshua"]
[Black "Parmelin, Axel"]
[Result "1-0"]
[ECO "C01"]
[WhiteElo "1342"]
[BlackElo "1298"]
[Annotator "NA COMBH"]
[PlyCount "57"]
[EventDate "2022.07.18"]
[EventType "swiss"]
[EventCountry "SUI"]
[SourceTitle "playchess.com"]
[Source "ChessBase"]
[SourceQuality "1"]
[TimeControl "5400+30"]

1. e4 {[%emt 0:00:10]} e6 {[%emt 0:00:06]} 2. d4 {[%emt 0:00:10]} d5 {[%emt 0:00:06]} 3. exd5 {[%emt 0:00:07]} exd5 {[%emt 0:00:08]} 4. c4 {[%emt 0:00:12]} Nf6 {[%emt 0:00:14]} 5. Nc3 {[%emt 0:00:41]} Nc6 {[%emt 0:00:19]} 6. Nf3 {[%emt 0:00:14]} Bb4 {[%emt 0:00:14]} 7. a3 {[%emt 0:01:18]} Bxc3+ {[%emt 0:00:50]} 8. bxc3 {[%emt 0:00:23]} Ne4 {[%emt 0:00:13]} 9. Bd2 {[%emt 0:00:38]} Qe7 {[%emt 0:00:14]} 10. Be2 {[%emt 0:00:17]} O-O {[%emt 0:00:12]} 11. O-O {[%emt 0:00:18]} Re8 {[%emt 0:00:05]} 12. cxd5 {[%emt 0:00:21]} Na5 {[%emt 0:00:32]} 13. c4 {[%emt 0:00:23]} b6 {[%emt 0:00:45]} 14. Bxa5 {[%emt 0:00:47]} bxa5 {[%emt 0:00:41]} 15. Ne5 {[%emt 0:00:27]} Bb7 {[%emt 0:00:34]} 16. Bd3 {[%emt 0:02:20]} f6 {[%emt 0:00:49]} 17. Bxe4 {[%emt 0:02:41]} fxe5 {[%emt 0:00:52]} 18. d6 {[%emt 0:00:55]} Qxd6 {[%emt 0:02:01]} 19. Bxb7 {[%emt 0:00:00]} Rad8 {[%emt 0:00:07]} 20. Bd5+ {[%emt 0:00:00]} Kh8 {[%emt 0:00:21]} 21. Re1 {[%emt 0:01:27]} Re7 {[%emt 0:00:29]} 22. Rb1 {[%emt 0:01:54]} Rde8 {[%emt 0:00:12]} 23. dxe5 {[%emt 0:00:54]} Rxe5 {[%emt 0:00:22]} 24. Rxe5 {[%emt 0:00:25]} Qxe5 {[%emt 0:00:18]} 25. h3 {[%emt 0:00:24]} Rd8 {[%emt 0:00:13]} 26. Qe1 {[%emt 0:01:05]} Qd4 {[%emt 0:00:37]} 27. Qe7 {[%emt 0:00:30]} Rg8 {[%emt 0:00:45]} 28. Bxg8 {[%emt 0:00:38]} Kxg8 {[%emt 0:00:21]} 29. Qe8# {[%emt 0:00:11]} 1-0

[Event "Swiss Championship U10 2022"]
[Site "Biel"]
[Date "2022.07.18"]
[Round "1.7"]
[White "Cavadini, Tommaso"]
[Black "Kumar, Shreyank"]
[Result "0-1"]
[ECO "C89"]
[WhiteElo "1290"]
[BlackElo "1404"]
[Annotator "NA COMBH"]
[PlyCount "48"]
[EventDate "2022.07.18"]
[EventType "swiss"]
[EventCountry "SUI"]
[SourceTitle "playchess.com"]
[Source "ChessBase"]
[SourceQuality "1"]
[TimeControl "5400+30"]

1. e4 {[%emt 0:00:05]} e5 {[%emt 0:00:11]} 2. Nf3 {[%emt 0:00:19]} Nc6 {[%emt 0:00:03]} 3. Bb5 {[%emt 0:00:15]} a6 {[%emt 0:00:16]} 4. Ba4 {[%emt 0:00:20]} Nf6 {[%emt 0:00:00]} 5. O-O {[%emt 0:00:23]} Be7 {[%emt 0:00:10]} 6. Re1 {[%emt 0:01:31]} b5 {[%emt 0:00:23]} 7. Bb3 {[%emt 0:00:16]} O-O {[%emt 0:00:12]} 8. c3 {[%emt 0:00:30]} d5 {[%emt 0:00:15]} 9. exd5 {[%emt 0:02:26]} Nxd5 {[%emt 0:00:08]} 10. h3 {[%emt 0:01:25]} Kh8 {[%emt 0:01:54]} 11. Nxe5 {[%emt 0:01:59]} Nxe5 {[%emt 0:00:09]} 12. Rxe5 {[%emt 0:00:16]} c6 {[%emt 0:00:04]} 13. d4 {[%emt 0:00:37]} Bd6 {[%emt 0:00:14]} 14. Re1 {[%emt 0:01:14]} Qh4 {[%emt 0:00:15]} 15. Nd2 {[%emt 0:02:08]} Nf4 {[%emt 0:07:31]} 16. Qf3 {[%emt 0:11:44]} Nxh3+ {[%emt 0:06:35]} 17. gxh3 {[%emt 0:00:30]} Bxh3 {[%emt 0:02:04]} 18. Re4 {[%emt 0:03:48]} Rae8 {[%emt 0:02:30]} 19. Bc2 {[%emt 0:07:07]} f5 {[%emt 0:03:11]} 20. Re3 {[%emt 0:01:25]} Rxe3 {[%emt 0:03:05]} 21. Qxe3 {[%emt 0:01:32]} Qg4+ {[%emt 0:00:00]} 22. Qg3 {[%emt 0:00:54]} Bxg3 {[%emt 0:00:20]} 23. fxg3 {[%emt 0:00:35]} Qxg3+ {[%emt 0:00:00]} 24. Kh1 {[%emt 0:00:08]} Qg2# {[%emt 0:00:07]} 0-1

[Event "Swiss Championship U10 2022"]
[Site "Biel"]
[Date "2022.07.18"]
[Round "1.8"]
[White "Gong, Yansheng"]
[Black "Lerner, David B"]
[Result "1-0"]
[ECO "B21"]
[WhiteElo "1285"]
[BlackElo "2125"]
[Annotator "TA"]
[PlyCount "35"]
[EventDate "2022.07.18"]
[EventType "swiss"]
[EventCountry "SUI"]
[SourceTitle "playchess.com"]
[Source "ChessBase"]
[SourceQuality "1"]
[TimeControl "5400+30"]

{[%evp 11,35,45,47,-38,48,53,54,45,254,116,276,272,1008,995,1068,1021,1945,1902,29982,1740,29988,29989,29989,29990,29994,1052]} 1. e4 {[%emt 0:00:04]} c5 {[%emt 0:00:19]} 2. d4 {[%emt 0:00:18]} cxd4 {[%emt 0:00:08]} 3. c3 {[%emt 0:00:12]} dxc3 {[%emt 0:00:02]} 4. Nxc3 {[%emt 0:00:11]} e5 {[%emt 0:00:48]} 5. Nf3 {[%emt 0:00:30]} Nc6 {[%emt 0:00:22]} 6. Bc4 {[%emt 0:00:33]} Bb4 {[%emt 0:00:29] [#]} 7. Qe2 $146 {[%emt 0:00:44] B21: Sicilian: 2 f4 and Morra Gambit.} (7. Ng5 $1 $14 Nh6 8. O-O) ({Predecessor:} 7. Qd5 Qe7 8. Bg5 Nf6 9. Bxf6 Qxf6 10. O-O Bxc3 11. bxc3 d6 12. Bb5 Bd7 13. Rfd1 Ke7 14. Ng5 h6 15. Nxf7 Qxf7 16. Qxd6+ {½-½ (104) Sipila,V (2402)-Savchenko,B (2564) Chess.com INT 2020}) 7... Nd4 {[%emt 0:00:46]} (7... Nf6 $15) 8. Nxd4 $14 {[%emt 0:03:20]} exd4 {[%emt 0:00:13][%mdl 64] Pin} 9. a3 {[%emt 0:00:14][%cal Ba2a3,Ba3b4][%mdl 32] White is slightly better.} (9. Qh5 Qe7 10. a3 Nf6 $17) 9... Qf6 $2 {[%emt 0:04:32]} 10. e5 {[%emt 0:03:10]} (10. axb4 $18 dxc3 11. O-O) 10... Qc6 {[%emt 0:04:04] Against Nd5} 11. axb4 $18 {[%emt 0:01:29]} Qxg2 $2 {[%emt 0:00:25]} (11... dxc3 12. O-O (12. bxc3 $2 b5 $19) 12... Ne7 13. bxc3 O-O) 12. Bd5 {[%emt 0:01:20]} Qg6 {[%emt 0:01:00]} 13. Nb5 {[%emt 0:02:25][%csl LRa7,LRd4] Threatens to win with Qc4.} Qb6 {[%emt 0:02:07]} 14. Nd6+ {[%emt 0:01:29]} Ke7 {[%emt 0:00:40]} 15. Nxf7 {[%emt 0:00:52]} (15. Bg5+ $142 Kf8 16. Qh5 g6 17. Bh6+ Ke7 18. Qh4+ f6 19. Bxg8 g5 20. Bxg5 $1 {[%mdl 512]}) 15... Qxb4+ {[%emt 0:00:48]} 16. Bd2 {[%emt 0:02:48] White mates.} Qc5 {[%emt 0:00:44]} 17. Bg5+ {[%emt 0:02:40]} Ke8 {[%emt 0:01:09]} 18. Qc4 {[%emt 0:02:06] Black did not feel at home in the position after the opening.  Weighted Error Value: White=0.26 (precise) /Black=1.72} (18. Nd6+ $142 Kf8 {[#]} 19. Qh5 $1 Qb4+ 20. Kd1 Qb3+ 21. Bxb3 g6 22. Qf3+ Kg7 23. Qf7#) 1-0